fUST/lending_fUST_20260330
["ID","MTS","AMOUNT","RATE_DAILY","PERIOD"]
[419072817,1774833046907,-159.0,0.00021,4]
[419072818,1774833046916,-1724.144113,0.00021,2]
[419072819,1774833046926,-336.925,0.00021,2]
[419072820,1774833046935,-1015.38,0.00021053,2]
[419072821,1774833046945,-214.62725,0.00021068,2]
[419072822,1774833046954,-214.62725,0.00021068,2]
[419072823,1774833046964,-214.62725,0.00021068,2]
[419072824,1774833046973,-214.62725,0.00021068,2]
[419072826,1774833046983,-474.97546711,0.00021075,2]
[419072828,1774833046992,-1015.38,0.00021316,2]
[419072830,1774833047002,-215.54586856,0.0002139,120]
[419072832,1774833047012,-242.02099479,0.0002139,120]
[419072834,1774833047022,-151.0,0.00021416,2]
[419072836,1774833047031,-151.0,0.00021416,2]
[419072838,1774833047041,-348.31851728,0.00021421,120]
[419072840,1774833047050,-472.80041578,0.00021421,120]
[419072842,1774833047060,-677.92797756,0.00021421,120]
[419072844,1774833047069,-391.74857921,0.0002156,2]
[419072846,1774833047079,-1015.38,0.00021579,2]
[419072848,1774833047089,-500.0,0.00021773,2]
[419072850,1774833047098,-6077.5274628,0.0002178,2]
[419072852,1774833047107,-150200.74774232,0.0002178,2]
[419072854,1774833047120,-10976.38954665,0.0002178,2]
[419073108,1774834240532,-308.56467424,0.00011432,2]
[419073109,1774834240542,-5000.0,0.00011547,2]
[419073110,1774834240552,-5000.0,0.00011664,2]
[419073111,1774834240563,-586.0,0.00011782,2]
[419073112,1774834240573,-300.0,0.0001202,2]
[419073113,1774834240582,-420.0,0.00013195,2]
[419073114,1774834240592,-1000.0,0.00013699,2]
[419073115,1774834240602,-300.0,0.00013972,2]
[419073116,1774834240611,-300.0,0.00013972,2]
[419073117,1774834240621,-300.0,0.00013972,2]
[419073118,1774834240632,-300.0,0.00013972,2]
[419073119,1774834240642,-300.0,0.00013972,2]
[419073120,1774834240651,-300.0,0.00013972,2]
[419073121,1774834240661,-300.0,0.00013972,2]
[419073122,1774834240672,-300.0,0.00013972,2]
[419073123,1774834240682,-300.0,0.00013972,2]
[419073124,1774834240692,-300.0,0.00013972,2]
[419073125,1774834240702,-300.0,0.00013972,2]
[419073126,1774834240711,-300.0,0.00013972,2]
[419073129,1774834240721,-300.0,0.00013972,2]
[419073131,1774834240730,-300.0,0.00013972,2]
[419073133,1774834240741,-300.0,0.00013972,2]
[419073134,1774834240751,-500.0,0.00013999,2]
[419073135,1774834240760,-500.0,0.00014,2]
[419073136,1774834240769,-500.0,0.00014,2]
[419073137,1774834240779,-500.0,0.00014,2]
[419073139,1774834240789,-500.0,0.00014,2]
[419073140,1774834240799,-500.0,0.00014,2]
[419073141,1774834240809,-500.0,0.00014,2]
[419073142,1774834240819,-500.0,0.00014,2]
[419073143,1774834240829,-500.0,0.00014,2]
[419073144,1774834240839,-513.86520017,0.00014,2]
[419073145,1774834240848,-1494.50315554,0.00014199,2]
[419073146,1774834240859,-500.0,0.000142,2]
[419073147,1774834240869,-500.0,0.000142,2]
[419073148,1774834240879,-500.0,0.000142,2]
[419073149,1774834240889,-500.0,0.000142,2]
[419073150,1774834240900,-307.0,0.00014485,2]
[419073152,1774834240910,-656.60883349,0.00014548,2]
[419073154,1774834240919,-1000.0,0.00014548,2]
[419073156,1774834240929,-1000.24288731,0.00014548,2]
[419073158,1774834240939,-1000.56496814,0.00014548,2]
[419073160,1774834240949,-1081.52022349,0.00014548,2]
[419073162,1774834240958,-1000.0,0.00014548,2]
[419073164,1774834240967,-907.01764143,0.00014548,2]
[419073166,1774834240977,-671.78477936,0.00014548,2]
[419073168,1774834240987,-615.481441,0.00014759,2]
[419073170,1774834240997,-250.36211158,0.00015412,2]
[419073172,1774834241007,-600.0,0.00018849,2]
[419073174,1774834241017,-1015.38,0.0002,2]
[419073176,1774834241027,-439.0,0.00020294,2]
[419073178,1774834241036,-184.0,0.00020294,2]
[419073180,1774834241046,-1015.38,0.00020417,2]
[419073182,1774834241056,-269.54,0.00020644,2]
[419073184,1774834241065,-175.974761,0.00020674,2]
[419073186,1774834241075,-720.0,0.00020733,2]
[419073188,1774834241084,-1015.38,0.00020833,2]
[419073201,1774834241193,-381.57146158,0.00021248,2]
[419073203,1774834241209,-1015.38,0.0002125,2]
[419073205,1774834241218,-381.57146156,0.00021303,2]
[419073207,1774834241228,-15951.48,0.00021338,10]
[419073209,1774834241238,-8155.96816784,0.00021338,10]
[419073211,1774834241251,-5136.93183216,0.00021338,10]
[419073213,1774834241260,-321.47717234,0.00021347,2]
[419073216,1774834241270,-500.0,0.00021347,2]
[419073218,1774834241280,-500.0,0.00021347,2]
[419073220,1774834241289,-500.0,0.00021347,2]
[419073222,1774834241299,-552.62092956,0.00021347,2]
[419073224,1774834241308,-500.0,0.00021347,2]
[419073226,1774834241318,-500.0,0.00021347,2]
[419073228,1774834241327,-500.0,0.00021347,2]
[419073230,1774834241336,-500.0,0.00021347,2]
[419073232,1774834241345,-500.0,0.00021347,2]
[419073234,1774834241354,-500.0,0.00021347,2]
[419073236,1774834241364,-500.0,0.00021347,2]
[419073238,1774834241373,-500.0,0.00021347,2]
[419073240,1774834241382,-500.0,0.00021347,2]
[419073242,1774834241392,-500.0,0.00021347,2]
[419073244,1774834241401,-500.0,0.00021347,2]
[419073246,1774834241410,-500.0,0.00021347,2]
[419073247,1774834241420,-500.0,0.00021347,2]
[419073249,1774834241431,-500.0,0.00021347,2]
[419073252,1774834241441,-500.0,0.00021347,2]
[419073254,1774834241452,-500.0,0.00021347,2]
[419073256,1774834241462,-500.0,0.00021347,2]
[419073258,1774834241472,-500.0,0.00021347,2]
[419073260,1774834241482,-500.0,0.00021347,2]
[419073262,1774834241491,-500.0,0.00021347,2]
[419073264,1774834241500,-500.0,0.00021347,2]
[419073265,1774834241510,-500.0,0.00021347,2]
[419073268,1774834241520,-500.0,0.00021347,2]
[419073270,1774834241530,-500.0,0.00021347,2]
[419073272,1774834241540,-500.0,0.00021347,2]
[419073274,1774834241549,-500.0,0.00021347,2]
[419073276,1774834241559,-303.97006559,0.00021347,2]
[419073290,1774834241681,-196.02993441,0.00021347,2]
[419073292,1774834241691,-500.0,0.00021347,2]
[419073294,1774834241701,-500.0,0.00021347,2]
[419073296,1774834241710,-500.0,0.00021347,2]
[419073298,1774834241720,-500.0,0.00021347,2]
[419073300,1774834241730,-500.0,0.00021347,2]
[419073302,1774834241740,-500.0,0.00021347,2]
[419073304,1774834241753,-500.0,0.00021347,2]
[419073306,1774834241762,-412.57465334,0.00021347,2]
[419073308,1774834241775,-87.42534666,0.00021347,2]
[419073310,1774834241785,-500.0,0.00021347,2]
[419073312,1774834241795,-500.0,0.00021347,2]
[419073315,1774834241806,-500.0,0.00021347,2]
[419073317,1774834241816,-500.0,0.00021347,2]
[419073319,1774834241826,-178.39546498,0.00021347,2]
[419073321,1774834241835,-191.6924007,0.00021347,2]
[419073323,1774834241847,-308.3075993,0.00021347,2]
[419073325,1774834241857,-500.0,0.00021347,2]
[419073327,1774834241867,-500.0,0.00021347,2]
[419073329,1774834241876,-139.31682303,0.00021347,2]
[419073331,1774834241888,-360.68317697,0.00021347,2]
[419073333,1774834241897,-196.38682303,0.00021347,2]
[419073768,1774834246406,-303.61317697,0.00021347,2]
[419073770,1774834246416,-500.0,0.00021347,2]
[419073772,1774834246425,-500.0,0.00021347,2]
[419073774,1774834246434,-2374.07403667,0.00021347,10]
[419074105,1774834249804,-12786.95621869,0.00021347,10]
[419074108,1774834249816,-3980.74974464,0.00021347,10]
[419074110,1774834249825,-712.0,0.00021347,10]
[419074112,1774834249834,-439.0,0.00021347,10]
[419074114,1774834249843,-500.0,0.00021347,9]
[419074116,1774834249852,-500.0,0.00021347,9]
[419074118,1774834249862,-196.0,0.00021347,10]
[419074120,1774834249871,-4411.2164919,0.00021348,2]
[419074328,1774835432743,-1828.60152261,5.056e-05,2]
[419074329,1774835432754,-2600.0,5.056e-05,2]
[419074330,1774835432764,-571.39847739,5.056e-05,2]
[419074331,1774835432773,-2178.60152261,5.107e-05,2]
[419074530,1774835443796,-500.0,5.107e-05,2]
[419074537,1774835443850,-2321.39847739,5.107e-05,2]
[419074539,1774835443860,-1130.0,5.158e-05,2]
[419074541,1774835443869,-300.0,5.313e-05,2]
[419074543,1774835443879,-292.1546127,5.37e-05,2]
[419074545,1774835443889,-300.0,5.475e-05,2]
[419074547,1774835443899,-300.0,5.475e-05,2]
[419074549,1774835443910,-300.0,5.475e-05,2]
[419074551,1774835443920,-300.0,5.475e-05,2]
[419074553,1774835443931,-300.0,5.475e-05,2]
[419074555,1774835443941,-300.0,5.475e-05,2]
[419074557,1774835443951,-300.0,5.475e-05,2]
[419074559,1774835443962,-300.0,5.475e-05,2]
[419074561,1774835443971,-300.0,5.475e-05,2]
[419074563,1774835443981,-300.0,5.475e-05,2]
[419074565,1774835443990,-300.0,5.475e-05,2]
[419074567,1774835444000,-300.0,5.475e-05,2]
[419074569,1774835444010,-300.0,5.475e-05,2]
[419074571,1774835444021,-300.0,5.475e-05,2]
[419074572,1774835444031,-300.0,5.475e-05,2]
[419074575,1774835444041,-420.0,5.844e-05,2]
[419074576,1774835444052,-587.0,6.429e-05,2]
[419074578,1774835444062,-823.0,7.072e-05,2]
[419074580,1774835444073,-1152.0,7.779e-05,2]
[419074582,1774835444083,-1613.0,8.557e-05,2]
[419074584,1774835444093,-1107.47401657,9.412e-05,2]
[419074828,1774835446490,-1150.52598343,9.412e-05,2]
[419074830,1774835446500,-1059.04162808,0.0001,2]
[419074832,1774835446509,-500.0,0.000102,2]
[419074834,1774835446518,-502.83598002,0.000102,2]
[419074836,1774835446528,-483.37708546,0.000102,2]
[419074838,1774835446537,-8132.13068938,0.00010649,2]
[419074851,1774835446662,-5837.11773662,0.00010649,2]
[419074853,1774835446671,-600.0,0.00010861,2]
[419074855,1774835446680,-200.0,0.00011,2]
[419074857,1774835446690,-500.0,0.00011027,2]
[419074858,1774835446699,-500.0,0.00011027,2]
[419074859,1774835446709,-500.0,0.00011027,2]
[419074860,1774835446718,-388.68602582,0.0001156,2]
[419074861,1774835446728,-502.02924794,0.0001156,2]
[419074862,1774835446737,-500.0,0.0001156,2]
[419074863,1774835446746,-1000.0,0.00011575,2]
[419074864,1774835446755,-1000.0,0.00011575,2]
[419074865,1774835446765,-1000.0,0.00011575,2]
[419074866,1774835446774,-720.0,0.00011947,2]
[419074867,1774835446783,-1000.0,0.00012108,2]
[419074868,1774835446792,-1500.0,0.00012123,2]
[419074869,1774835446802,-1500.0,0.00012123,2]
[419074870,1774835446812,-1500.0,0.00012123,2]
[419074871,1774835446822,-502.13002577,0.0001236,2]
[419074872,1774835446831,-500.0,0.0001236,2]
[419074873,1774835446841,-503.04215166,0.0001236,2]
[419074874,1774835446850,-500.0,0.0001236,2]
[419074875,1774835446860,-500.0,0.00012634,2]
[419074876,1774835446871,-1500.0,0.00012656,2]
[419074877,1774835446881,-2000.0,0.00012671,2]
[419074878,1774835446891,-2000.0,0.00012671,2]
[419074879,1774835446902,-2000.0,0.00012671,2]
[419074880,1774835446911,-181.54859618,0.000129,2]
[419074881,1774835446920,-1000.0,0.00012908,2]
[419074882,1774835446930,-500.0,0.00012908,2]
[419074883,1774835446940,-864.0,0.00013142,2]
[419074884,1774835446950,-500.0,0.00013182,2]
[419074885,1774835446960,-2000.0,0.00013204,2]
[419074886,1774835446969,-2500.0,0.00013218,2]
[419074887,1774835446979,-2500.0,0.00013218,2]
[419074888,1774835446988,-2500.0,0.00013218,2]
[419074889,1774835446997,-1500.0,0.00013456,2]
[419074890,1774835447007,-476.21093621,0.00013456,2]
[419074891,1774835447016,-501.09925082,0.00013533,2]
[419074892,1774835447026,-502.6500926,0.00013533,2]
[419074893,1774835447035,-500.0,0.00013698,2]
[419074894,1774835447044,-500.0,0.00013698,2]
[419074895,1774835447054,-500.0,0.00013698,2]
[419074896,1774835447065,-500.0,0.00013698,2]
[419074897,1774835447075,-500.0,0.00013698,2]
[419074898,1774835447085,-500.0,0.00013698,2]
[419074899,1774835447094,-376.16451791,0.00013698,2]
[419074900,1774835447104,-500.0,0.00013698,2]
[419074901,1774835447114,-500.0,0.00013698,2]
[419074902,1774835447123,-500.0,0.00013698,2]
[419074903,1774835447132,-500.0,0.00013698,2]
[419074904,1774835447142,-500.0,0.00013698,2]
[419074905,1774835447151,-500.0,0.00013698,2]
[419074907,1774835447161,-500.0,0.00013698,2]
[419074909,1774835447170,-500.0,0.00013698,2]
[419074910,1774835447179,-500.0,0.00013698,2]
[419074912,1774835447190,-500.0,0.00013698,2]
[419074914,1774835447199,-500.0,0.00013698,2]
[419074916,1774835447208,-500.0,0.00013698,2]
[419074918,1774835447218,-500.0,0.00013698,2]
[419074920,1774835447227,-500.0,0.00013698,2]
[419074921,1774835447237,-500.0,0.00013698,2]
[419074923,1774835447246,-500.0,0.00013698,2]
[419074925,1774835447256,-500.0,0.00013698,2]
[419074927,1774835447266,-500.0,0.00013698,2]
[419074929,1774835447275,-500.0,0.00013698,2]
[419074931,1774835447285,-198.59078009,0.00013698,2]
[419074933,1774835447296,-500.0,0.00013698,2]
[419074935,1774835447305,-500.0,0.00013698,2]
[419074937,1774835447316,-500.0,0.00013698,2]
[419074939,1774835447324,-500.0,0.00013698,2]
[419074941,1774835447333,-500.0,0.00013698,2]
[419074943,1774835447343,-500.0,0.00013698,2]
[419074945,1774835447353,-500.0,0.00013698,2]
[419074946,1774835447362,-500.0,0.00013698,2]
[419074948,1774835447371,-500.0,0.00013698,2]
[419074950,1774835447380,-245.72424484,0.00013698,2]
[419074952,1774835447390,-1000.0,0.00013699,2]
[419074954,1774835447399,-1000.0,0.00013699,2]
[419074956,1774835447409,-580.55505165,0.00013752,2]
[419074958,1774835447418,-3000.0,0.00013766,2]
[419074960,1774835447427,-3000.0,0.00013766,2]
[419074962,1774835447436,-3000.0,0.00013766,2]
[419074964,1774835447445,-2000.0,0.00014004,2]
[419074966,1774835447455,-153.31041936,0.00014097,2]
[419074967,1774835447465,-209.85822698,0.00014097,2]
[419074969,1774835447474,-3500.0,0.00014314,2]
[419074971,1774835447484,-3500.0,0.00014314,2]
[419074973,1774835447494,-3500.0,0.00014314,2]
[419074975,1774835447503,-155.37809157,0.00014355,2]
[419074977,1774835447513,-1000.0,0.00014456,2]
[419074979,1774835447522,-2500.0,0.00014552,2]
[419074981,1774835447531,-4000.0,0.00014862,2]
[419074983,1774835447541,-2975.4644973,0.00014862,2]
[419074985,1774835447551,-3705.55200151,0.00014862,2]
[419074987,1774835447560,-301.299945,0.00015,2]
[419074989,1774835447570,-2754.61324508,0.000151,2]
[419074991,1774835447581,-760.87799253,0.0001541,2]
[419074993,1774835447590,-1000.0,0.00015902,2]
[419074995,1774835447601,-244.0,0.00015902,2]
[419074997,1774835447611,-154.07271044,0.00016438,2]
[419074999,1774835447620,-1411.06631084,0.00016438,2]
[419075001,1774835447629,-1000.0,0.00017492,2]
[419075003,1774835447639,-492.0,0.00017492,2]
[419075005,1774835447648,-1957.856,0.00019133,2]
[419075007,1774835447658,-2398.4119403,0.00019133,2]
[419075009,1774835447667,-200.0,0.00019178,2]
[419075011,1774835447676,-200.0,0.00019178,2]
[419075013,1774835447686,-2030.296672,0.00019188,2]
[419075015,1774835447695,-1000.0,0.00019241,2]
[419075017,1774835447705,-791.0,0.00019241,2]
[419075019,1774835447714,-2105.41764886,0.00019243,2]
[419075021,1774835447723,-2183.31810187,0.00019298,2]
[419075023,1774835447732,-429.19681534,0.00019353,2]
[419075025,1774835447742,-2487.15318209,0.00019681,2]
[419075027,1774835447752,-1017.74,0.0002,2]
[419075029,1774835447762,-2579.17784983,0.00020229,2]
[419075031,1774835447772,-747.0,0.00020499,10]
[419075033,1774835447782,-192.0,0.00020499,10]
[419075035,1774835447791,-11077.42,0.00020615,10]
[419075037,1774835447801,-1017.74,0.00020625,2]
[419075039,1774835447811,-195.5830334,0.00020681,2]
[419075040,1774835447820,-2674.60743027,0.00020777,2]
[419075042,1774835447829,-1000.0,0.00021166,10]
[419075044,1774835447838,-1000.0,0.00021166,10]
[419075046,1774835447847,-1017.74,0.0002125,2]
[419075048,1774835447856,-2773.56790519,0.00021325,2]
[419075050,1774835447865,-232.87439359,0.00021346,2]
[419075052,1774835447874,-500.0,0.00021346,2]
[419075054,1774835447884,-500.0,0.00021346,2]
[419075056,1774835447893,-500.0,0.00021346,2]
[419075058,1774835447903,-500.0,0.00021346,2]
[419075060,1774835447912,-500.0,0.00021346,2]
[419075062,1774835447922,-500.0,0.00021346,2]
[419075064,1774835447931,-500.0,0.00021346,2]
[419075066,1774835447940,-500.0,0.00021346,2]
[419075068,1774835447949,-500.0,0.00021346,2]
[419075070,1774835447959,-500.0,0.00021346,2]
[419075071,1774835447969,-212.80396814,0.00021346,2]
[419075073,1774835447978,-212.55388074,0.00021347,2]
[419075075,1774835447987,-382.59698534,0.00021347,2]
[419075077,1774835447997,-680.17241838,0.00021347,2]
[419075079,1774835448007,-238.18333144,0.00021347,2]
[419075081,1774835448016,-272.20952165,0.00021347,2]
[419075083,1774835448025,-61878.9490237,0.00021347,2]
[419075085,1774835448034,-24281.1158428,0.00021347,2]
[419075086,1774835448044,-424.9020502,0.00021347,2]
[419075088,1774835448054,-441.3945298,0.00021347,2]
[419075090,1774835448064,-1000.0,0.00021348,2]
[419075092,1774835448073,-303.0,0.00021353,2]
[419075094,1774835448082,-16738.18621871,0.00021366,2]
[419075096,1774835448091,-1061.70663431,0.00021464,2]
[419075098,1774835448100,-5207.44572763,0.00021482,2]
[419075108,1774835448110,-150.39489268,0.00021573,2]
[419075110,1774835448207,-500.0,0.00021573,2]
[419075112,1774835448216,-500.0,0.00021573,2]
[419075113,1774835448226,-500.0,0.00021573,2]
[419075115,1774835448238,-500.0,0.00021573,2]
[419075117,1774835448248,-500.0,0.00021573,2]
[419075119,1774835448258,-150.19427672,0.00021573,2]
[419075121,1774835448267,-500.0,0.00021573,2]
[419075123,1774835448277,-500.0,0.00021573,2]
[419075125,1774835448286,-6827.35973915,0.00021573,2]
[419075127,1774835448297,-197.087,0.00021581,2]
[419075129,1774835448306,-883.34565706,0.00021582,2]
[419075131,1774835448317,-256.38874395,0.00021582,2]
[419075133,1774835448326,-2809288.62469866,0.00021582,2]
[419075135,1774835448335,-1723.72,0.00021582,2]
[419075137,1774835448345,-1723.72,0.00021582,2]
[419075139,1774835448354,-1723.72,0.00021582,2]
[419075141,1774835448364,-1723.72,0.00021582,2]
[419075143,1774835448373,-1723.72,0.00021582,2]
[419075145,1774835448382,-1723.72,0.00021582,2]
[419075147,1774835448392,-1723.72,0.00021582,2]
[419075149,1774835448401,-1723.72,0.00021582,2]
[419075151,1774835448410,-1723.72,0.00021582,2]
[419075152,1774835448420,-1723.72,0.00021582,2]
[419075154,1774835448430,-1723.72,0.00021582,2]
[419075156,1774835448439,-1723.72,0.00021582,2]
[419075158,1774835448449,-1723.72,0.00021582,2]
[419075160,1774835448458,-1723.72,0.00021582,2]
[419075162,1774835448467,-1723.72,0.00021582,2]
[419075164,1774835448477,-1723.72,0.00021582,2]
[419075166,1774835448485,-1723.72,0.00021582,2]
[419075168,1774835448495,-1723.72,0.00021582,2]
[419075170,1774835448503,-1723.72,0.00021582,2]
[419075172,1774835448512,-1723.72,0.00021582,2]
[419075174,1774835448521,-1723.72,0.00021582,2]
[419075176,1774835448531,-1723.72,0.00021582,2]
[419075177,1774835448540,-1723.72,0.00021582,2]
[419075179,1774835448549,-932.51,0.00021582,2]
[419075181,1774835448558,-829.26,0.00021582,2]
[419075183,1774835448567,-790.0,0.000217,2]
[419075185,1774835448576,-1672.82742,0.000217,2]
[419075187,1774835448586,-303.0,0.00021771,2]
[419075189,1774835448595,-107905.08762135,0.0002178,2]
[419075191,1774835448604,-200.0,0.0002178,2]
[419075193,1774835448613,-422002.96125824,0.000218,7]
[419075196,1774835448636,-11372.84577771,0.000218,7]
[419075198,1774835448648,-2635.5202002,0.000218,7]
[419075592,1774836061805,-5000.0,6.194e-05,2]
[419075593,1774836061834,-5000.0,6.257e-05,2]
[419075594,1774836061853,-958.0,6.32e-05,2]
[419075595,1774836061864,-510.0,6.321e-05,2]
[419075596,1774836061873,-199.0,6.511e-05,2]
[419075597,1774836061883,-300.0,6.511e-05,2]
[419075598,1774836061893,-300.0,6.511e-05,2]
[419075599,1774836061903,-310.6724681,6.581e-05,2]
[419075600,1774836061912,-300.0,6.711e-05,2]
[419075601,1774836061922,-300.0,6.711e-05,2]
[419075602,1774836061931,-300.0,6.711e-05,2]
[419075603,1774836061941,-300.0,6.711e-05,2]
[419075604,1774836061950,-300.0,6.711e-05,2]
[419075605,1774836061959,-300.0,6.711e-05,2]
[419075606,1774836061968,-300.0,6.711e-05,2]
[419075607,1774836061977,-300.0,6.711e-05,2]
[419075608,1774836061988,-22.3275319,6.711e-05,2]
[419075609,1774836061999,-277.6724681,6.711e-05,2]
[419075610,1774836062008,-300.0,6.711e-05,2]
[419075611,1774836062018,-300.0,6.711e-05,2]
[419075612,1774836062028,-300.0,6.711e-05,2]
[419075613,1774836062038,-300.0,6.711e-05,2]
[419075614,1774836062048,-300.0,6.711e-05,2]
[419075615,1774836062058,-300.0,6.711e-05,2]
[419075616,1774836062067,-500.0,6.72e-05,2]
[419075622,1774836090885,-3041.53614874,7.999e-05,2]
[419075698,1774836632511,-414.00499462,7.684e-05,2]
[419075699,1774836632525,-330.04220898,7.684e-05,2]
[419075700,1774836632537,-2986.97584522,7.684e-05,2]
[419075701,1774836632549,-1268.97695118,7.684e-05,2]
[419075702,1774836632559,-528.0,7.684e-05,2]
[419075703,1774836632571,-1200.0,7.761e-05,2]
[419075704,1774836632581,-5000.0,7.762e-05,2]
[419075705,1774836632590,-300.0,7.915e-05,2]
[419075706,1774836632600,-300.0,8.323e-05,2]
[419075707,1774836632610,-300.0,8.323e-05,2]
[419075708,1774836632620,-300.0,8.323e-05,2]
[419075709,1774836632630,-300.0,8.323e-05,2]
[419075710,1774836632639,-300.0,8.323e-05,2]
[419075711,1774836632649,-300.0,8.323e-05,2]
[419075712,1774836632659,-300.0,8.323e-05,2]
[419075713,1774836632669,-300.0,8.323e-05,2]
[419075714,1774836632678,-46.80014166,8.323e-05,2]
[419075715,1774836632690,-253.19985834,8.323e-05,2]
[419075716,1774836632700,-300.0,8.323e-05,2]
[419075717,1774836632710,-300.0,8.323e-05,2]
[419075718,1774836632720,-233.05490812,8.323e-05,2]
[419075719,1774836632731,-66.94509188,8.323e-05,2]
[419075720,1774836632741,-300.0,8.323e-05,2]
[419075721,1774836632751,-9.69610019,8.323e-05,2]
[419075760,1774836641421,-290.30389981,8.323e-05,2]
[419075762,1774836641431,-300.0,8.323e-05,2]
[419075763,1774836641441,-500.0,8.33e-05,2]
[419075764,1774836641451,-94.03814097,8.707e-05,2]
[419075765,1774836641527,-325.96185903,8.707e-05,2]
[419075766,1774836641537,-265.55627695,9.577e-05,2]
[419075767,1774836641549,-321.44372305,9.577e-05,2]
[419075768,1774836641558,-58.27963529,9.583e-05,2]
[419075805,1774836642216,-238.34234178,9.583e-05,2]
[419075807,1774836642225,-539.08832984,0.00010535,2]
[419075818,1774836642327,-283.91167016,0.00010535,2]
[419075821,1774836642337,-1152.0,0.00011588,2]
[419075823,1774836642348,-837.0,0.00012747,2]
[419075825,1774836642357,-1000.0,0.00013699,2]
[419075827,1774836642367,-4179.49144173,0.00017124,2]
[419075946,1774836644180,-321.52186509,0.00017124,2]
[419075947,1774836644302,-115.48044888,0.00017124,2]
[419075948,1774836644312,-227.78335,0.0001767,2]
[419075949,1774836644324,-182.24762239,0.00018352,2]
[419075950,1774836644334,-3608.42693197,0.00018363,2]
[419075951,1774836644345,-2769.19885243,0.00018363,2]
[419075952,1774836644355,-173.2555639,0.000184,2]
[419075953,1774836644364,-227.78335,0.00018414,2]
[419075954,1774836644375,-170.22170177,0.00018724,2]
[419075955,1774836644385,-600.0,0.00018729,2]
[419075956,1774836644396,-227.78335,0.00019158,2]
[419075958,1774836644406,-170.22170177,0.00019304,2]
[419075960,1774836644414,-211.73818307,0.000194,2]
[419075962,1774836644424,-189.701,0.00019683,2]
[419075964,1774836644433,-446.853,0.00019683,2]
[419075965,1774836644444,-523.0,0.0001977,5]
[419075966,1774836644455,-170.22170177,0.00019901,2]
[419075967,1774836644464,-227.78335,0.00019902,2]
[419075968,1774836644474,-162.380719,0.00019928,2]
[419075969,1774836644484,-151.0,0.00019928,2]
[419075970,1774836644493,-151.0,0.00019928,2]
[419075971,1774836644503,-151.0,0.00019928,2]
[419075972,1774836644512,-151.0,0.00019928,2]
[419075973,1774836644522,-151.0,0.00019928,2]
[419075974,1774836644531,-151.0,0.00019928,2]
[419075975,1774836644541,-151.0,0.00019928,2]
[419075976,1774836644550,-64.27372158,0.00019928,2]
[419075977,1774836644562,-423.72163559,0.00019928,2]
[419075978,1774836644575,-151.0,0.00019928,2]
[419075979,1774836644584,-151.0,0.00019928,2]
[419075980,1774836644594,-151.0,0.00019928,2]
[419075981,1774836644603,-151.0,0.00019928,2]
[419075982,1774836644613,-151.0,0.00019928,2]
[419075983,1774836644623,-151.0,0.00019928,2]
[419075984,1774836644632,-151.0,0.00019928,2]
[419075985,1774836644641,-151.0,0.00019928,2]
[419075986,1774836644651,-151.0,0.00019928,2]
[419075987,1774836644661,-599.60298507,0.00019928,2]
[419075988,1774836644670,-2398.4119403,0.00019928,2]
[419075989,1774836644680,-621.78829552,0.00019983,2]
[419075990,1774836644689,-1017.75,0.0002,2]
[419075991,1774836644699,-150.0,0.0002,2]
[419075992,1774836644708,-644.79446246,0.00020038,2]
[419075993,1774836644717,-668.65185757,0.00020093,2]
[419075994,1774836644727,-750.0,0.000201,10]
[419075995,1774836644738,-693.3919763,0.00020148,2]
[419075996,1774836644748,-719.04747942,0.00020203,2]
[419075997,1774836644758,-745.65223616,0.00020258,2]